[Event "FIDE WCCC U12 2018"]
[Site "Santiago de Compostela"]
[Date "2018.11.04"]
[Round "1"]
[White "Maurizzi, Marc Andria"]
[Black "Fernandez Lopez, Pedro"]
[Result "1-0"]
[ECO "B01"]
[WhiteElo "2103"]
[BlackElo "1572"]
[Annotator "ChessBase"]
[PlyCount "71"]
[EventDate "2018.11.04"]
[EventType "swiss"]
[EventCountry "ESP"]
[SourceTitle "playchess.com"]
[Source "ChessBase"]
[SourceQuality "1"]
[TimeControl "40/5400+30:1800+30"]

1. e4 {[%emt 0:00:00]} d5 {[%emt 0:00:00]} 2. exd5 {[%emt 0:00:14]} Qxd5 {[%emt 0:01:16]} 3. Nc3 {[%emt 0:00:18]} Qd8 {[%emt 0:00:46]} 4. d4 {[%emt 0:01:06]} Nf6 {[%emt 0:03:44]} 5. Nf3 {[%emt 0:01:25]} Bg4 {[%emt 0:04:11]} 6. h3 {[%emt 0:02:08]} Bxf3 {[%emt 0:05:47]} 7. Qxf3 {[%emt 0:00:17]} c6 {[%emt 0:00:17]} 8. Qd3 {[%emt 0:01:25]} e6 {[%emt 0:05:57]} 9. g3 {[%emt 0:02:21]} Be7 {[%emt 0:05:05]} 10. Bg2 {[%emt 0:00:30]} Nbd7 {[%emt 0:02:07]} 11. O-O {[%emt 0:00:18]} O-O {[%emt 0:02:58]} 12. b3 {[%emt 0:00:59]} Nb6 {[%emt 0:06:41]} 13. Bb2 {[%emt 0:01:55]} Qc7 {[%emt 0:03:43]} 14. Ne2 {[%emt 0:03:34]} Rfd8 {[%emt 0:03:19]} 15. c4 {[%emt 0:01:20]} Rac8 {[%emt 0:05:41]} 16. Rfd1 {[%emt 0:00:19]} Nbd7 {[%emt 0:07:23]} 17. Rac1 {[%emt 0:04:40]} Qb6 {[%emt 0:04:49]} 18. Nf4 {[%emt 0:04:18]} Nf8 {[%emt 0:07:16]} 19. Qe2 {[%emt 0:02:07]} Ng6 {[%emt 0:02:00]} 20. Nd3 {[%emt 0:00:21]} Qa6 {[%emt 0:03:31]} 21. a3 h6 {[%emt 0:07:33]} 22. Nc5 {[%emt 0:09:23]} Qb6 {[%emt 0:04:09]} 23. b4 {[%emt 0:00:27]} Qc7 {[%emt 0:02:32]} 24. d5 {[%emt 0:03:47]} exd5 {[%emt 0:02:29]} 25. cxd5 {[%emt 0:01:01]} Nxd5 {[%emt 0:02:10]} 26. Ne6 {[%emt 0:01:56]} fxe6 {[%emt 0:00:52]} 27. Qxe6+ {[%emt 0:00:08]} Kh7 {[%emt 0:00:01]} 28. Rxd5 {[%emt 0:01:09]} Rxd5 {[%emt 0:02:43]} 29. Bxd5 {[%emt 0:00:06]} Qd8 {[%emt 0:00:27]} 30. Be4 {[%emt 0:00:13]} Bf6 {[%emt 0:01:46]} 31. Bxf6 {[%emt 0:00:24]} gxf6 {[%emt 0:00:07]} 32. Qf7+ {[%emt 0:00:11]} Kh8 {[%emt 0:00:29]} 33. Qxg6 {[%emt 0:00:09]} Rc7 {[%emt 0:00:17]} 34. Qxh6+ {[%emt 0:00:17]} Kg8 {[%emt 0:00:05]} 35. Qf4 {[%emt 0:00:35]} Rg7 {[%emt 0:00:32]} 36. Kg2 {[%emt 0:00:03]} 1-0

[Event "FIDE WCCC U12 2018"]
[Site "Santiago de Compostela"]
[Date "2018.11.04"]
[Round "1"]
[White "Macias de Castro, Alberto"]
[Black "Vergara Anton, Diego"]
[Result "0-1"]
[ECO "C01"]
[WhiteElo "1586"]
[BlackElo "2132"]
[Annotator "ChessBase"]
[PlyCount "58"]
[EventDate "2018.11.04"]
[EventType "swiss"]
[EventCountry "ESP"]
[SourceTitle "playchess.com"]
[Source "ChessBase"]
[SourceQuality "1"]
[TimeControl "40/5400+30:1800+30"]

1. e4 {[%emt 0:00:00]} e6 {[%emt 0:00:00]} 2. d4 {[%emt 0:01:17]} d5 {[%emt 0:00:00]} 3. exd5 {[%emt 0:01:00]} exd5 {[%emt 0:00:00]} 4. Bd3 {[%emt 0:01:54]} Nc6 {[%emt 0:00:31]} 5. c3 {[%emt 0:01:29]} Bd6 {[%emt 0:03:12]} 6. Qc2 {[%emt 0:01:28]} h6 {[%emt 0:04:44]} 7. Nf3 {[%emt 0:02:55]} Bg4 {[%emt 0:02:47]} 8. Nbd2 {[%emt 0:05:15]} Qe7+ {[%emt 0:00:53]} 9. Be2 {[%emt 0:02:12]} O-O-O {[%emt 0:00:23]} 10. h3 {[%emt 0:02:19]} Bd7 {[%emt 0:02:07]} 11. Nb3 {[%emt 0:14:21]} Re8 {[%emt 0:02:37]} 12. Be3 {[%emt 0:02:43]} f5 {[%emt 0:01:22]} 13. g3 {[%emt 0:10:43]} Bxg3 {[%emt 0:03:47]} 14. Nc5 {[%emt 0:06:09]} Qxe3 {[%emt 0:02:23]} 15. fxg3 {[%emt 0:00:48]} Qxf3 {[%emt 0:00:47]} 16. Rg1 {[%emt 0:00:58]} Qe3 {[%emt 0:01:35]} 17. Rg2 {[%emt 0:01:23]} Nf6 {[%emt 0:06:08]} 18. Rd1 {[%emt 0:01:21]} f4 {[%emt 0:04:07]} 19. Rd3 {[%emt 0:00:59]} Qe7 {[%emt 0:00:07]} 20. gxf4 {[%emt 0:00:18]} Bf5 {[%emt 0:05:36]} 21. Qb3 {[%emt 0:00:38]} Na5 {[%emt 0:00:18]} 22. Qb5 {[%emt 0:01:57]} Bxd3 {[%emt 0:00:25]} 23. Nxd3 {[%emt 0:00:33]} Nc4 {[%emt 0:00:41]} 24. Nc5 {[%emt 0:00:38]} c6 {[%emt 0:01:17]} 25. Qa4 {[%emt 0:01:00]} Kb8 {[%emt 0:00:23]} 26. Qb4 {[%emt 0:02:40]} Ne3 {[%emt 0:02:13]} 27. Na6+ {[%emt 0:01:23]} Ka8 {[%emt 0:00:21]} 28. Qxe7 {[%emt 0:04:49]} Nxg2+ {[%emt 0:00:10]} 29. Kf2 {[%emt 0:00:05]} Rxe7 {[%emt 0:00:06]} 0-1

[Event "FIDE WCCC U12 2018"]
[Site "Santiago de Compostela"]
[Date "2018.11.05"]
[Round "2"]
[White "Yoo, Christopher Woojin"]
[Black "Oberoi, Shelev"]
[Result "1-0"]
[ECO "C73"]
[WhiteElo "2407"]
[BlackElo "1935"]
[Annotator "RC"]
[PlyCount "89"]
[EventDate "2018.11.04"]
[EventType "swiss"]
[EventCountry "ESP"]
[SourceTitle "playchess.com"]
[Source "ChessBase"]
[SourceQuality "1"]
[TimeControl "40/5400+30:1800+30"]

1. e4 {[%emt 0:00:00]} e5 {[%emt 0:00:00]} 2. Nf3 {[%emt 0:00:00]} Nc6 {[%emt 0:00:00]} 3. Bb5 {[%emt 0:00:00]} a6 {[%emt 0:00:00]} 4. Ba4 {[%emt 0:00:00]} d6 {[%emt 0:00:00]} 5. Bxc6+ {[%emt 0:00:02]} bxc6 {[%emt 0:00:00]} 6. d4 {[%emt 0:00:06]} f6 {[%emt 0:00:51]} 7. h3 {[%emt 0:02:21]} Ne7 {[%emt 0:01:13]} 8. Nc3 {[%emt 0:04:32]} Ng6 {[%emt 0:01:34]} 9. Be3 {[%emt 0:03:03]} Be7 {[%emt 0:02:23]} 10. Qd3 {[%emt 0:12:29]} Be6 {[%emt 0:02:33]} 11. O-O-O {[%emt 0:06:06]} Qc8 {[%emt 0:04:35]} 12. d5 {[%emt 0:06:39]} cxd5 {[%emt 0:12:42]} 13. Nxd5 {[%emt 0:00:27]} Qb7 {[%emt 0:07:29]} 14. Qc4 {[%emt 0:03:20]} Kf7 {[%emt 0:01:26]} 15. Qa4 {[%emt 0:04:27]} Rab8 {[%emt 0:04:55]} 16. b3 {[%emt 0:01:07]} Rhd8 {[%emt 0:05:51]} 17. Ne1 {[%emt 0:09:25]} Bxd5 {[%emt 0:08:06]} 18. Rxd5 {[%emt 0:00:32]} c6 {[%emt 0:03:05]} 19. Ra5 {[%emt 0:02:37]} Ra8 {[%emt 0:12:41]} 20. Nd3 {[%emt 0:02:34]} Rd7 {[%emt 0:03:29]} 21. Nb4 {[%emt 0:03:47]} c5 {[%emt 0:05:08]} 22. Nxa6 {[%emt 0:03:24]} Qc8 {[%emt 0:06:28]} 23. Qc4+ {[%emt 0:09:02]} Kf8 {[%emt 0:00:29]} 24. b4 {[%emt 0:00:56]} cxb4 {[%emt 0:06:47]} 25. Qxc8+ {[%emt 0:00:07]} Rxc8 {[%emt 0:00:04]} 26. Nxb4 {[%emt 0:00:17]} Rc4 {[%emt 0:03:57]} 27. Nd5 {[%emt 0:00:24]} Rxe4 {[%emt 0:00:33]} 28. f3 {[%emt 0:00:35]} Rh4 {[%emt 0:00:41]} 29. g3 {[%emt 0:02:05]} Rh5 {[%emt 0:00:20]} 30. g4 {[%emt 0:02:21]} Rh4 {[%emt 0:00:12]} 31. Rb5 {[%emt 0:02:16]} Bd8 {[%emt 0:03:12]} 32. a4 {[%emt 0:01:43]} Ne7 {[%emt 0:00:30]} 33. Nxe7 {[%emt 0:01:55]} Kxe7 {[%emt 0:00:10]} 34. a5 {[%emt 0:00:17]} Rc7 {[%emt 0:01:33]} 35. a6 {[%emt 0:00:15]} Rc8 {[%emt 0:01:33]} 36. Rb7+ {[%emt 0:00:53]} Bc7 {[%emt 0:02:14]} 37. Bb6 {[%emt 0:00:27]} Kd7 {[%emt 0:00:29]} 38. a7 {[%emt 0:00:16]} Kc6 {[%emt 0:00:12]} 39. Rxc7+ {[%emt 0:00:05]} Rxc7 {[%emt 0:00:03]} 40. a8=Q+ {[%emt 0:00:00]} Kxb6 {[%emt 0:00:00]} 41. Kd2 {[%emt 0:00:17]} Kc5 {[%emt 0:01:58]} 42. Ra1 {[%emt 0:00:27]} Kd4 {[%emt 0:01:02]} 43. Qe4+ {[%emt 0:00:14]} Kc5 {[%emt 0:00:05]} 44. Ra5+ {[%emt 0:00:04]} Kb6 {[%emt 0:00:27]} 45. Qb4+ {[%emt 0:00:06]} 1-0

[Event "FIDE WCCC U12 2018"]
[Site "Santiago de Compostela"]
[Date "2018.11.05"]
[Round "2"]
[White "Guo, Arthur"]
[Black "Haack, Kevin"]
[Result "*"]
[ECO "B75"]
[WhiteElo "2333"]
[BlackElo "1911"]
[Annotator "RC"]
[PlyCount "113"]
[EventDate "2018.11.04"]
[EventType "swiss"]
[EventCountry "ESP"]
[SourceTitle "playchess.com"]
[Source "ChessBase"]
[SourceQuality "1"]
[TimeControl "40/5400+30:1800+30"]

1. e4 {[%emt 0:00:00]} c5 {[%emt 0:00:00]} 2. Nf3 {[%emt 0:00:00]} d6 {[%emt 0:00:00]} 3. d4 cxd4 {[%emt 0:00:00]} 4. Nxd4 {[%emt 0:00:00]} Nf6 {[%emt 0:00:00]} 5. Nc3 {[%emt 0:00:15]} g6 {[%emt 0:00:00]} 6. Be3 {[%emt 0:00:29]} Bg7 {[%emt 0:00:10]} 7. f3 {[%emt 0:00:30]} Nc6 {[%emt 0:00:08]} 8. Qd2 {[%emt 0:00:10]} Bd7 {[%emt 0:00:43]} 9. O-O-O {[%emt 0:00:28]} h5 {[%emt 0:01:17]} 10. Kb1 {[%emt 0:01:21]} Rc8 {[%emt 0:00:30]} 11. h3 {[%emt 0:02:05]} a6 {[%emt 0:02:13]} 12. Be2 {[%emt 0:03:49]} h4 {[%emt 0:07:32]} 13. f4 {[%emt 0:05:50]} b5 {[%emt 0:06:50]} 14. Nxc6 {[%emt 0:08:36]} Bxc6 {[%emt 0:00:30]} 15. Bf3 {[%emt 0:01:26]} Qc7 {[%emt 0:06:56]} 16. Bd4 Kf8 {[%emt 0:06:05]} 17. Rhe1 {[%emt 0:17:42]} Ne8 {[%emt 0:10:40]} 18. Bg4 {[%emt 0:00:30]} Rd8 {[%emt 0:02:40]} 19. f5 {[%emt 0:12:07]} gxf5 {[%emt 0:07:45]} 20. Bxf5 {[%emt 0:00:30]} e6 {[%emt 0:00:30]} 21. Bg4 Qe7 {[%emt 0:14:57]} 22. Qf2 {[%emt 0:07:04]} Bxd4 {[%emt 0:00:11]} 23. Qxd4 {[%emt 0:00:35]} e5 24. Qb6 {[%emt 0:01:26]} Qc7 {[%emt 0:02:26]} 25. Qe3 {[%emt 0:00:39]} Nf6 {[%emt 0:02:13]} 26. Rf1 {[%emt 0:01:27]} Nxg4 {[%emt 0:01:28]} 27. hxg4 {[%emt 0:00:07]} b4 {[%emt 0:01:24]} 28. Nd5 {[%emt 0:00:30]} Bxd5 {[%emt 0:00:30]} 29. exd5 {[%emt 0:00:30]} Rc8 {[%emt 0:02:49]} 30. Rf2 {[%emt 0:00:22]} Qd7 {[%emt 0:03:42]} 31. Rdf1 {[%emt 0:00:44]} Rh7 {[%emt 0:00:21]} 32. Qe4 {[%emt 0:01:31]} Rg7 {[%emt 0:02:22]} 33. g5 {[%emt 0:00:41]} Rxg5 {[%emt 0:06:46]} 34. Qxh4 {[%emt 0:00:24]} Rg7 {[%emt 0:00:53]} 35. Qh8+ {[%emt 0:00:33]} Rg8 {[%emt 0:00:06]} 36. Qh6+ {[%emt 0:00:04]} Ke8 {[%emt 0:01:00]} 37. Qh7 {[%emt 0:01:55]} Rf8 {[%emt 0:00:40]} 38. g4 {[%emt 0:00:37]} f6 {[%emt 0:10:29]} 39. Qg6+ {[%emt 0:00:32]} Qf7 40. Qe4 {[%emt 0:00:00]} Qg7 {[%emt 0:00:00]} 41. Qxb4 {[%emt 0:00:59]} Kd7 {[%emt 0:04:11]} 42. Qa4+ {[%emt 0:00:30]} Ke7 {[%emt 0:01:19]} 43. Qxa6 Qxg4 44. Qb7+ {[%emt 0:01:39]} Qd7 {[%emt 0:00:39]} 45. Qxd7+ {[%emt 0:00:08]} Kxd7 {[%emt 0:00:01]} 46. Rxf6 {[%emt 0:00:14]} Rxf6 {[%emt 0:00:04]} 47. Rxf6 {[%emt 0:00:05]} Rc5 {[%emt 0:00:05]} 48. Rf7+ {[%emt 0:01:07]} Ke8 {[%emt 0:01:15]} 49. Rh7 {[%emt 0:00:05]} Rxd5 {[%emt 0:00:12]} 50. Kc1 {[%emt 0:00:50]} e4 {[%emt 0:05:03]} 51. Rh4 {[%emt 0:00:25]} Re5 {[%emt 0:00:03]} 52. Kd2 {[%emt 0:00:25]} Kd7 {[%emt 0:01:20]} 53. Ke3 {[%emt 0:00:35]} d5 {[%emt 0:00:12]} 54. Kd4 {[%emt 0:01:55]} Rg5 {[%emt 0:00:41]} 55. Rh2 {[%emt 0:02:28]} Kc6 {[%emt 0:01:07]} 56. a4 {[%emt 0:00:15]} Rg3 {[%emt 0:06:46]} 57. b4 {[%emt 0:05:28]} *

[Event "FIDE WCCC U12 2018"]
[Site "Santiago de Compostela"]
[Date "2018.11.05"]
[Round "2"]
[White "Ghazarian, Kirk"]
[Black "Maldonado Mena, German"]
[Result "1/2-1/2"]
[ECO "E62"]
[WhiteElo "2264"]
[BlackElo "1898"]
[Annotator "ChessBase"]
[PlyCount "89"]
[EventDate "2018.11.04"]
[EventType "swiss"]
[EventCountry "ESP"]
[SourceTitle "playchess.com"]
[Source "ChessBase"]
[SourceQuality "1"]
[TimeControl "40/5400+30:1800+30"]

1. d4 {[%emt 0:00:00]} Nf6 {[%emt 0:00:00]} 2. c4 {[%emt 0:00:00]} g6 {[%emt 0:00:08]} 3. g3 {[%emt 0:00:00]} Bg7 {[%emt 0:00:13]} 4. Bg2 {[%emt 0:00:00]} O-O {[%emt 0:00:16]} 5. Nc3 {[%emt 0:00:00]} d6 {[%emt 0:00:29]} 6. Nf3 {[%emt 0:00:02]} Nc6 {[%emt 0:00:45]} 7. O-O {[%emt 0:00:08]} e5 {[%emt 0:00:46]} 8. d5 {[%emt 0:00:24]} Ne7 {[%emt 0:00:27]} 9. e4 {[%emt 0:00:32]} Nd7 {[%emt 0:01:01]} 10. Ne1 {[%emt 0:00:28]} f5 {[%emt 0:01:02]} 11. Nd3 {[%emt 0:00:25]} Nf6 {[%emt 0:01:00]} 12. Bg5 {[%emt 0:02:07]} h6 {[%emt 0:01:34]} 13. Bxf6 {[%emt 0:00:18]} Bxf6 {[%emt 0:02:54]} 14. f3 {[%emt 0:01:51]} c6 {[%emt 0:07:19]} 15. Qd2 {[%emt 0:06:39]} cxd5 {[%emt 0:04:41]} 16. cxd5 {[%emt 0:01:51]} Qb6+ {[%emt 0:22:00]} 17. Kh1 {[%emt 0:00:23]} Bg7 {[%emt 0:06:45]} 18. Rac1 {[%emt 0:02:50]} fxe4 {[%emt 0:04:09]} 19. fxe4 {[%emt 0:00:27]} Bd7 {[%emt 0:00:24]} 20. b3 {[%emt 0:01:37]} Rxf1+ {[%emt 0:06:22]} 21. Bxf1 {[%emt 0:17:32]} Rf8 {[%emt 0:06:34]} 22. Bg2 {[%emt 0:06:54]} Kh7 {[%emt 0:01:22]} 23. Rf1 {[%emt 0:09:52]} Rxf1+ {[%emt 0:01:23]} 24. Bxf1 {[%emt 0:00:05]} Bf6 {[%emt 0:00:46]} 25. Kg2 {[%emt 0:10:57]} Bg5 {[%emt 0:03:24]} 26. Qf2 {[%emt 0:01:02]} Qxf2+ {[%emt 0:00:27]} 27. Kxf2 {[%emt 0:00:04]} h5 {[%emt 0:01:31]} 28. Nb2 {[%emt 0:00:42]} a6 {[%emt 0:02:36]} 29. a4 {[%emt 0:07:08]} Bd2 {[%emt 0:02:17]} 30. Na2 {[%emt 0:03:26]} b5 {[%emt 0:07:06]} 31. axb5 {[%emt 0:00:44]} axb5 {[%emt 0:00:15]} 32. Nd3 {[%emt 0:04:56]} Ba5 {[%emt 0:06:17]} 33. Kg2 {[%emt 0:03:54]} Kg7 {[%emt 0:02:16]} 34. Ndb4 {[%emt 0:04:27]} Nc8 {[%emt 0:01:36]} 35. Na6 {[%emt 0:03:49]} Na7 {[%emt 0:01:03]} 36. N6b4 {[%emt 0:04:09]} Kf7 {[%emt 0:00:57]} 37. Nc2 {[%emt 0:00:50]} Bd2 {[%emt 0:04:02]} 38. Kf2 {[%emt 0:00:25]} Bg4 {[%emt 0:01:22]} 39. Be2 {[%emt 0:00:20]} Bd7 {[%emt 0:00:03]} 40. Bd3 {[%emt 0:00:00]} Bg4 {[%emt 0:00:00]} 41. Na3 {[%emt 0:05:51]} Bd1 {[%emt 0:04:03]} 42. Bc2 {[%emt 0:00:40]} Bg4 {[%emt 0:07:41]} 43. Bd3 {[%emt 0:11:16]} Bd1 {[%emt 0:00:55]} 44. Bc2 {[%emt 0:00:35]} Bg4 {[%emt 0:00:08]} 45. Nb1 1/2-1/2

[Event "FIDE WCCC U12 2018"]
[Site "Santiago de Compostela"]
[Date "2018.11.05"]
[Round "2"]
[White "Flores Quillas, Diego Saul Rodri"]
[Black "Suleymanli, Suleyman"]
[Result "1/2-1/2"]
[ECO "C14"]
[WhiteElo "2205"]
[BlackElo "1882"]
[Annotator "ChessBase"]
[PlyCount "139"]
[EventDate "2018.11.04"]
[EventType "swiss"]
[EventCountry "ESP"]
[SourceTitle "playchess.com"]
[Source "ChessBase"]
[SourceQuality "1"]
[TimeControl "40/5400+30:1800+30"]

1. e4 {[%emt 0:00:00]} e6 {[%emt 0:00:00]} 2. d4 {[%emt 0:00:00]} d5 {[%emt 0:00:00]} 3. Nc3 {[%emt 0:00:00]} Nf6 {[%emt 0:00:00]} 4. Bg5 {[%emt 0:00:04]} Be7 {[%emt 0:00:02]} 5. e5 {[%emt 0:00:21]} Nfd7 {[%emt 0:00:07]} 6. Bxe7 {[%emt 0:00:13]} Qxe7 {[%emt 0:00:12]} 7. f4 {[%emt 0:00:32]} a6 {[%emt 0:00:10]} 8. Nf3 {[%emt 0:00:10]} c5 {[%emt 0:01:17]} 9. dxc5 {[%emt 0:00:08]} Qxc5 {[%emt 0:01:17]} 10. Qd2 {[%emt 0:00:39]} Nc6 {[%emt 0:00:29]} 11. Bd3 {[%emt 0:00:26]} b5 {[%emt 0:02:40]} 12. O-O-O {[%emt 0:04:40]} Bb7 {[%emt 0:04:22]} 13. Kb1 {[%emt 0:05:24]} h6 {[%emt 0:02:07]} 14. Ne2 {[%emt 0:08:56]} O-O-O {[%emt 0:02:08]} 15. Qe1 {[%emt 0:05:59]} g6 {[%emt 0:08:02]} 16. h4 {[%emt 0:04:20]} h5 {[%emt 0:05:55]} 17. Qg1 {[%emt 0:00:52]} Qxg1 {[%emt 0:02:42]} 18. Rhxg1 {[%emt 0:00:57]} Ne7 {[%emt 0:04:10]} 19. Ned4 {[%emt 0:03:40]} Nf5 {[%emt 0:07:32]} 20. Bxf5 {[%emt 0:02:56]} gxf5 {[%emt 0:00:15]} 21. Ng5 {[%emt 0:00:09]} Rdf8 {[%emt 0:01:01]} 22. Nb3 {[%emt 0:00:25]} Kd8 {[%emt 0:01:04]} 23. c3 {[%emt 0:15:15]} Ke7 {[%emt 0:01:17]} 24. Kc2 {[%emt 0:01:52]} Rc8 {[%emt 0:01:11]} 25. Kd3 {[%emt 0:06:32]} Nc5+ {[%emt 0:04:14]} 26. Nxc5 {[%emt 0:00:07]} Rxc5 {[%emt 0:00:03]} 27. Rd2 {[%emt 0:04:07]} a5 {[%emt 0:03:04]} 28. a3 {[%emt 0:04:01]} Ba6 {[%emt 0:01:56]} 29. Ke3 {[%emt 0:02:47]} Rb8 {[%emt 0:03:07]} 30. Ra1 {[%emt 0:05:20]} Rh8 {[%emt 0:09:49]} 31. Rd4 {[%emt 0:01:41]} a4 {[%emt 0:02:07]} 32. Rh1 {[%emt 0:00:18]} Rcc8 {[%emt 0:01:17]} 33. Rh3 {[%emt 0:00:20]} Rh6 {[%emt 0:01:35]} 34. Kf2 {[%emt 0:01:23]} Rg8 {[%emt 0:00:54]} 35. Rd1 {[%emt 0:00:29]} Rc8 {[%emt 0:02:37]} 36. Rg3 {[%emt 0:00:20]} Rb8 {[%emt 0:02:54]} 37. Nf3 {[%emt 0:00:29]} Rg6 {[%emt 0:02:55]} 38. Rg5 {[%emt 0:00:05]} Rh8 {[%emt 0:02:28]} 39. Ke3 {[%emt 0:00:38]} Kd7 {[%emt 0:05:41]} 40. Rh1 {[%emt 0:00:00]} Rh7 {[%emt 0:00:00]} 41. Nd4 {[%emt 0:00:44]} Rh8 {[%emt 0:05:11]} 42. Rh3 {[%emt 0:02:25]} Rh7 {[%emt 0:01:39]} 43. Ne2 {[%emt 0:01:14]} Bb7 {[%emt 0:04:05]} 44. Kd4 {[%emt 0:00:12]} Kc6 {[%emt 0:00:19]} 45. Ng3 {[%emt 0:00:28]} Rgh6 {[%emt 0:01:28]} 46. Ne2 {[%emt 0:00:35]} Rg6 {[%emt 0:00:08]} 47. Rhg3 {[%emt 0:00:26]} Rhh6 {[%emt 0:00:22]} 48. Ng1 {[%emt 0:04:19]} Bc8 {[%emt 0:03:23]} 49. Nf3 {[%emt 0:00:23]} Bd7 {[%emt 0:00:57]} 50. Kd3 {[%emt 0:00:44]} Kb6 {[%emt 0:00:45]} 51. Nd4 {[%emt 0:00:17]} Bc8 {[%emt 0:00:38]} 52. Kc2 {[%emt 0:00:45]} Bd7 {[%emt 0:00:44]} 53. b3 {[%emt 0:02:58]} Kc5 {[%emt 0:05:56]} 54. Rh3 {[%emt 0:01:21]} Rh8 {[%emt 0:01:20]} 55. Rh1 {[%emt 0:00:23]} axb3+ {[%emt 0:01:33]} 56. Nxb3+ {[%emt 0:00:20]} Kb6 {[%emt 0:00:18]} 57. Nd4 {[%emt 0:01:26]} Ra8 {[%emt 0:04:24]} 58. Kb3 {[%emt 0:00:23]} Rh8 {[%emt 0:04:15]} 59. Kc2 {[%emt 0:04:19]} Ra8 {[%emt 0:00:06]} 60. Ra1 {[%emt 0:00:24]} Kc5 {[%emt 0:02:29]} 61. Kd3 {[%emt 0:01:21]} Rh8 {[%emt 0:03:16]} 62. Ra2 {[%emt 0:00:47]} Rxg5 {[%emt 0:03:39]} 63. hxg5 {[%emt 0:04:18]} h4 {[%emt 0:00:11]} 64. Nf3 {[%emt 0:00:54]} Bc6 {[%emt 0:01:22]} 65. Ra1 {[%emt 0:01:19]} h3 {[%emt 0:01:18]} 66. Rh1 {[%emt 0:01:00]} d4 {[%emt 0:00:54]} 67. cxd4+ {[%emt 0:00:05]} Kb6 {[%emt 0:00:11]} 68. Ke3 {[%emt 0:00:09]} Bxf3 {[%emt 0:00:41]} 69. Kxf3 {[%emt 0:00:46]} hxg2 {[%emt 0:00:07]} 70. Rg1 {[%emt 0:01:23]} 1/2-1/2

[Event "FIDE WCCC U12 2018"]
[Site "Santiago de Compostela"]
[Date "2018.11.05"]
[Round "2"]
[White "Droin, Augustin"]
[Black "Ermachenko, Manuel"]
[Result "1-0"]
[ECO "B42"]
[WhiteElo "2155"]
[BlackElo "1862"]
[Annotator "ChessBase"]
[PlyCount "153"]
[EventDate "2018.11.04"]
[EventType "swiss"]
[EventCountry "ESP"]
[SourceTitle "playchess.com"]
[Source "ChessBase"]
[SourceQuality "1"]
[TimeControl "40/5400+30:1800+30"]

1. e4 {[%emt 0:00:00]} c5 {[%emt 0:00:00]} 2. Nf3 {[%emt 0:00:00]} e6 {[%emt 0:00:00]} 3. d4 {[%emt 0:00:00]} cxd4 {[%emt 0:00:00]} 4. Nxd4 {[%emt 0:00:00]} a6 {[%emt 0:00:00]} 5. Bd3 {[%emt 0:01:05]} Qc7 {[%emt 0:00:05]} 6. O-O {[%emt 0:04:32]} Nf6 {[%emt 0:03:49]} 7. Re1 {[%emt 0:08:21]} d6 {[%emt 0:03:06]} 8. c4 {[%emt 0:01:08]} b6 {[%emt 0:00:20]} 9. Nc3 {[%emt 0:00:33]} Bb7 {[%emt 0:00:21]} 10. a4 {[%emt 0:08:05]} Be7 {[%emt 0:01:03]} 11. a5 {[%emt 0:02:06]} bxa5 {[%emt 0:00:22]} 12. Qa4+ {[%emt 0:00:12]} Nbd7 {[%emt 0:01:39]} 13. Nb3 {[%emt 0:03:27]} O-O {[%emt 0:01:34]} 14. Qxa5 {[%emt 0:00:24]} Qb8 {[%emt 0:01:25]} 15. Bc2 {[%emt 0:06:24]} Ne5 {[%emt 0:06:26]} 16. Qb4 {[%emt 0:03:10]} Qc7 {[%emt 0:04:19]} 17. Na5 {[%emt 0:02:54]} Rfb8 {[%emt 0:05:25]} 18. Qa4 {[%emt 0:00:42]} Nfd7 {[%emt 0:04:26]} 19. Be3 {[%emt 0:03:50]} Nb6 {[%emt 0:04:21]} 20. Bxb6 {[%emt 0:00:36]} Qxb6 {[%emt 0:00:06]} 21. b4 {[%emt 0:03:45]} Bc8 {[%emt 0:01:20]} 22. Rab1 {[%emt 0:04:18]} Bd7 {[%emt 0:00:39]} 23. Qa2 {[%emt 0:00:22]} Rc8 {[%emt 0:06:43]} 24. Nd1 {[%emt 0:02:27]} Qc7 {[%emt 0:03:09]} 25. Nb2 {[%emt 0:08:21]} Rab8 {[%emt 0:01:26]} 26. f4 {[%emt 0:02:05]} Ng4 {[%emt 0:04:34]} 27. Nd3 {[%emt 0:01:07]} Bf6 {[%emt 0:02:00]} 28. e5 {[%emt 0:08:36]} dxe5 {[%emt 0:01:57]} 29. h3 {[%emt 0:00:07]} e4 {[%emt 0:03:01]} 30. Rxe4 {[%emt 0:01:12]} Bc6 {[%emt 0:01:31]} 31. Nxc6 {[%emt 0:01:35]} Qxc6 {[%emt 0:00:07]} 32. Nc5 {[%emt 0:00:06]} Rxb4 {[%emt 0:01:53]} 33. Nxa6 {[%emt 0:01:51]} Rxb1+ {[%emt 0:01:25]} 34. Bxb1 {[%emt 0:03:48]} Nh6 {[%emt 0:01:42]} 35. c5 {[%emt 0:02:39]} Be7 {[%emt 0:00:47]} 36. Kh2 {[%emt 0:00:22]} g6 {[%emt 0:02:12]} 37. Rc4 {[%emt 0:03:07]} f5 {[%emt 0:02:30]} 38. Bd3 {[%emt 0:02:16]} Rd8 {[%emt 0:04:03]} 39. Nb4 {[%emt 0:02:26]} Qc7 {[%emt 0:00:35]} 40. Qa6 {[%emt 0:00:00]} Kf7 {[%emt 0:00:00]} 41. Qb6 {[%emt 0:03:49]} Qxb6 {[%emt 0:02:09]} 42. cxb6 {[%emt 0:00:25]} Rb8 {[%emt 0:00:31]} 43. Rc7 {[%emt 0:00:26]} Rxb6 {[%emt 0:00:15]} 44. Nc6 {[%emt 0:00:07]} Ng8 {[%emt 0:00:04]} 45. Ne5+ {[%emt 0:01:01]} Kg7 {[%emt 0:00:26]} 46. Bc4 {[%emt 0:00:37]} Rd6 {[%emt 0:00:49]} 47. Nc6 {[%emt 0:01:43]} Kf7 {[%emt 0:00:30]} 48. Ne5+ {[%emt 0:00:23]} Kg7 {[%emt 0:00:06]} 49. g4 {[%emt 0:01:30]} h6 {[%emt 0:01:13]} 50. Kg3 {[%emt 0:01:23]} Rb6 {[%emt 0:02:49]} 51. g5 {[%emt 0:02:00]} hxg5 {[%emt 0:02:05]} 52. fxg5 {[%emt 0:00:05]} Rd6 {[%emt 0:02:19]} 53. h4 {[%emt 0:02:50]} Rd4 {[%emt 0:01:06]} 54. Nf3 {[%emt 0:00:46]} Re4 {[%emt 0:00:57]} 55. Rc6 {[%emt 0:01:47]} Bd6+ {[%emt 0:08:02]} 56. Rxd6 {[%emt 0:00:14]} Rxc4 {[%emt 0:00:06]} 57. Rxe6 {[%emt 0:01:34]} Rc7 {[%emt 0:00:55]} 58. Ne5 {[%emt 0:03:30]} Ne7 {[%emt 0:00:08]} 59. Rf6 {[%emt 0:00:21]} f4+ {[%emt 0:01:58]} 60. Kg4 {[%emt 0:00:53]} Ra7 {[%emt 0:01:52]} 61. Rf7+ {[%emt 0:03:07]} Kg8 {[%emt 0:00:13]} 62. Rxe7 {[%emt 0:00:08]} Rxe7 {[%emt 0:00:11]} 63. Nxg6 {[%emt 0:00:02]} Rg7 {[%emt 0:00:32]} 64. Nxf4 {[%emt 0:00:09]} Kh7 {[%emt 0:01:00]} 65. h5 {[%emt 0:01:15]} Ra7 {[%emt 0:00:08]} 66. Nd5 {[%emt 0:04:33]} Kg7 {[%emt 0:01:03]} 67. h6+ {[%emt 0:00:56]} Kg6 {[%emt 0:00:18]} 68. Nf4+ {[%emt 0:00:05]} Kh7 {[%emt 0:00:06]} 69. Kh5 {[%emt 0:00:02]} Ra5 {[%emt 0:00:24]} 70. Ne6 {[%emt 0:00:24]} Re5 {[%emt 0:00:28]} 71. Nf8+ {[%emt 0:00:06]} Kg8 {[%emt 0:00:12]} 72. h7+ {[%emt 0:00:10]} Kh8 {[%emt 0:00:10]} 73. Ng6+ {[%emt 0:00:05]} Kxh7 {[%emt 0:00:08]} 74. Nxe5 {[%emt 0:00:04]} Kg7 {[%emt 0:00:08]} 75. g6 {[%emt 0:00:08]} Kh8 {[%emt 0:00:07]} 76. Kh6 {[%emt 0:00:06]} Kg8 {[%emt 0:00:05]} 77. Ng4 {[%emt 0:00:03]} 1-0